Workbook

Sheet кросс плот
A1: Обводненность | B1: Дебит жидкости | C1: 1 / Дебит жидкости
A2: % | B2: т/сут | C2: сут/т
A3: 10 | B3: 18 | C3: =1/B3 -> 0.05555555556
A4: 10 | B4: 22 | C4: =1/B4 -> 0.04545454545
A5: 20 | B5: 20 | C5: =1/B5 -> 0.05
A6: 25 | B6: 22 | C6: =1/B6 -> 0.04545454545
A7: 25 | B7: 25 | C7: =1/B7 -> 0.04
A8: 25 | B8: 20 | C8: =1/B8 -> 0.05
A9: 32 | B9: 20 | C9: =1/B9 -> 0.05
A10: 35 | B10: 25 | C10: =1/B10 -> 0.04
A11: 37 | B11: 26 | C11: =1/B11 -> 0.03846153846
A12: 40 | B12: 25 | C12: =1/B12 -> 0.04
A13: 45 | B13: 22 | C13: =1/B13 -> 0.04545454545
A14: 50 | B14: 25 | C14: =1/B14 -> 0.04
A15: 55 | B15: 30 | C15: =1/B15 -> 0.03333333333
A16: 65 | B16: 25 | C16: =1/B16 -> 0.04
A17: 70 | B17: 28 | C17: =1/B17 -> 0.03571428571
A18: 70 | B18: 33.33333333 | C18: =1/B18 -> 0.03
A19: 75 | B19: 30 | C19: =1/B19 -> 0.03333333333
A20: 75 | B20: 40 | C20: =1/B20 -> 0.025
A21: 90 | B21: 42 | C21: =1/B21 -> 0.02380952381
A22: 90 | B22: 44 | C22: =1/B22 -> 0.02272727273
A23: 93 | B23: 31.25 | C23: =1/B23 -> 0.032
A24: 98 | B24: 38 | C24: =1/B24 -> 0.02631578947
A25: 100 | B25: 45 | C25: =1/B25 -> 0.02222222222
A26: 100 | B26: 55 | C26: =1/B26 -> 0.01818181818
